Cogmind - Beta 13 @@@ ROGUE MODE // 2024.03.08 @ 12:49:12 Player: MAC-Bot 2145 Result: Destroyed by Y-54 Guardian with Gatling Laser Performance ------------- Evolutions (3) 1500 Regions Visited (9) 1800 Robots Destroyed (27) 135 Value Destroyed (843) 843 Prototype IDs (1) 20 Alien Tech Used (0) 0 Bonus (1479) 1479 TOTAL SCORE: 5777 Bonus ------- Entered Garrisons 200 Used RIF Installer 500 Entered DSFs 500 Aligned with FarCom 300 Friendly Fire -21 Cogmind --------- Core Integrity 0/700 Matter 70/300 Energy 100/100 System Corruption 1% Temperature Cool (6) Movement Core (50) Location -7/Garrison Parts ------- > --- POWER (2) -------- (None) > --- PROPULSION (3) --- (None) > --- UTILITY (6) ------ Terrain Scan Processor Hacking Suite > --- WEAPON (2) ------- (None) > --- INVENTORY (5) ---- (None) Peak State ------------ > --- POWER ------------ Light Ion Engine Light Deuterium Engine > --- PROPULSION ------- Carbon-fiber Leg Improved Carbon-fiber Leg Improved Carbon-fiber Leg > --- UTILITY ---------- Medium Storage Unit Terrain Scanner Terrain Scan Processor Terrain Scan Processor Targeting Computer Hacking Suite > --- WEAPON ----------- Advanced Beam Rifle Light Cannon > --- INVENTORY -------- Improved Titanium Leg Improved Titanium Leg Trap Scanner Hacking Suite Heavy Assault Rifle [Rating: 31] Favorites ----------- Power Light Ion Engine Engine Light Ion Engine Power Core Light Nuclear Core Propulsion Aluminum Leg Treads Armored Treads Leg Aluminum Leg Wheel Wheel Utility Hacking Suite Device Trap Scanner Storage Medium Storage Unit Processor Terrain Scan Processor Hackware Hacking Suite Protection Core Shielding Weapon Heavy Assault Rifle Energy Gun EM Pulse Gun Ballistic Gun Heavy Assault Rifle Ballistic Cannon Light Cannon Launcher Rocket Launcher Impact Weapon Heavy Flail Build | -11 -10 -9 -9 -9 -8 -8 -7 -7 -7 ------- Run | Yrd Mat Mat Min Exi Min Mat Fac DSF Gar Slots Evolved 6 | . . 2 . . . 2 2 . . Power 1 | . . . . . . . 1 . . Propulsion 1 | . . . . . . 1 . . . Utility 4 | . . 2 . . . 1 1 . . Weapon . | . . . . . . . . . . Parts Attached 44 | 4 5 5 1 1 2 14 . 10 2 Power 6 | 1 . 1 . . . 2 . 2 . Engine 5 | 1 . 1 . . . 2 . 1 . Core 1 | . . . . . . . . 1 . Reactor . | . . . . . . . . . . Propulsion 13 | 2 . 2 1 . . 3 . 5 . Treads 1 | . . . . . . 1 . . . Leg 8 | . . 2 1 . . . . 5 . Wheel 4 | 2 . . . . . 2 . . . Hover . | . . . . . . . . . . Flight . | . . . . . . . . . . Utility 12 | 1 2 2 . 1 . 3 . 1 2 Device 3 | . . 1 . . . 1 . . 1 Storage 3 | 1 1 . . 1 . . . . . Processor 3 | . . 1 . . . 1 . 1 . Hackware 2 | . . . . . . 1 . . 1 Protection 1 | . 1 . . . . . . . . Artifact . | . . . . . . . . . . Weapon 13 | . 3 . . . 2 6 . 2 . Energy Gun 2 | . 1 . . . . . . 1 . Energy Cannon . | . . . . . . . . . . Ballistic Gun 4 | . 1 . . . 1 1 . 1 . Ballistic Cannon 3 | . 1 . . . 1 1 . . . Launcher 3 | . . . . . . 3 . . . Special Weapon . | . . . . . . . . . . Impact Weapon 1 | . . . . . . 1 . . . Slashing Weapon . | . . . . . . . . . . Piercing Weapon . | . . . . . . . . . . Special Melee Weapon . | . . . . . . . . . . Unidentified Prototypes 1 | . . . . . . . . 1 . Parts Lost 24 | . . . . . 1 9 . 7 7 Power 4 | . . . . . . 2 . 2 . Propulsion 6 | . . . . . . 3 . . 3 Utility 8 | . . . . . . 2 . 3 3 Weapon 6 | . . . . . 1 2 . 2 1 Highest Loss Streak 6 | . . . . . 1 3 . 6 4 To Critical Strikes 1 | . . . . . . 1 . . . Average Slot Usage (%) 70 | . 98 100 100 100 99 82 76 77 47 Engine 5 | . 14 11 11 11 11 8 7 7 . Treads 1 | . . . . . . 7 7 . . Leg 5 | . . 5 22 22 22 . . 20 1 Wheel 3 | . 28 16 . . . 3 7 . . Device 7 | . . 11 11 11 11 8 7 4 6 Storage 8 | . 14 11 11 11 11 9 7 7 6 Processor 10 | . . 11 11 11 11 17 15 13 7 Hackware 8 | . . . . . . 8 7 7 14 Protection 3 | . 12 11 11 11 11 . . . . Energy Gun 2 | . 14 11 11 11 . . . 2 . Ballistic Gun 4 | . 1 . . . 7 3 7 4 6 Ballistic Cannon 5 | . 12 11 11 11 14 8 7 4 . Naked Turns . | . . . . . . . . . . Heaviest Build 25 | 8 14 15 15 20 21 22 22 25 15 Greatest Support 58 | 26 26 26 23 23 23 23 20 58 58 Greatest Overweight (x) 6 | . . . . . . 6 1 1 4 Average Overweight (x) . | . . . . . . . 1 . 1 Largest Inventory Capacity 10 | 8 8 8 8 10 10 10 10 10 10 Average Capacity 9 | 7 8 8 8 9 10 10 10 10 9 Most Carried 8 | 8 8 8 8 8 8 7 6 7 2 Average Carried 3 | 3 6 7 8 7 7 4 6 3 . Final Capacity 10 | 8 8 8 8 10 10 10 10 10 5 Final Carried 8 | 8 8 8 8 8 8 6 6 2 . Class Distribution -------------------- 43% | Hacker-Mutant 32% | Mutant 17% | Skirmisher 5% | Assassin Dominant Class ---------------- Mutant | -10/Materials Mutant | -9/Materials Mutant | -9/Mines Mutant | -9/Exiles Mutant | -8/Mines Skirmisher | -8/Materials Skirmisher | -7/Factory Scavenger-Skirmisher | -7/DSF Hacker-Mutant | -7/Garrison Resources | -11 -10 -9 -9 -9 -8 -8 -7 -7 -7 ----------- Run | Yrd Mat Mat Min Exi Min Mat Fac DSF Gar Matter Collected 743 | 235 105 108 20 . 85 143 . . 47 Remotely . | . . . . . . . . . . Salvage Created 751 | . 8 281 9 . 140 202 . 64 47 Parts 47 | . 3 15 2 . 2 13 . 11 1 Haulers Intercepted . | . . . . . . . . . . Recyclers Shooed . | . . . . . . . . . . Parts Field Recycled . | . . . . . . . . . . Retrieved Matter . | . . . . . . . . . . Parts Self-Destructed . | . . . . . . . . . . Prevented . | . . . . . . . . . . Kills | -11 -10 -9 -9 -9 -8 -8 -7 -7 -7 ------- Run | Yrd Mat Mat Min Exi Min Mat Fac DSF Gar Combat Hostiles Destroyed 22 | . . 8 1 . 3 6 . 3 1 Melee 1 | . . . . . . . . . 1 Guns 7 | . . 4 . . . . . 3 . Cannons 10 | . . 4 1 . 3 2 . . . AOE 4 | . . . . . . 4 . . . Classes Destroyed 11 | . 1 4 . . . 5 . 1 . Worker 1 | . . . . . . 1 . . . Builder 1 | . . . . . . 1 . . . Operator 2 | . . 2 . . . . . . . Watcher 1 | . 1 . . . . . . . . Swarmer 4 | . . 3 1 . . . . . . Cutter 3 | . . . . . . . . 3 . Grunt 9 | . . 4 . . 2 2 . . 1 Brawler 2 | . . 1 . . 1 . . . . Duelist 1 | . . . . . . 1 . . . Sentry 1 | . . . . . . 1 . . . Hunter 2 | . . . . . . 2 . . . Best Kill Streak 5 | . 1 3 1 . 3 5 . 3 1 Combat Bots Only 4 | . . 3 1 . 3 4 . 3 1 Max Kills in Single Turn 2 | . 1 1 1 . 1 2 . 1 1 Gunslinging . | . . . . . . . . . . Exploded 1 | . . . . . . 1 . . . Melee 1 | . . . . . . . . . 1 Uniques/NPCs Destroyed . | . . . . . . . . . . Combat | -11 -10 -9 -9 -9 -8 -8 -7 -7 -7 -------- Run | Yrd Mat Mat Min Exi Min Mat Fac DSF Gar Hostile Shots Fired 247 | . . 23 . . 21 68 . 48 87 Missed 74 | . . 4 . . 3 18 . 20 29 Damage Taken 3025 | . . 203 . . 280 730 . 991 821 Core 999 | . . 34 . . 64 201 . 219 481 Absorbed by Shields 18 | . . . . . . . . . 18 Redirected to Shielding 51 | . . 8 . . 14 29 . . . Core Remaining (%) 84 | 100 100 . . . 75 63 . . . Volleys Fired 77 | . 1 14 2 . 10 13 . 15 22 Largest 2 | . 2 2 2 . 2 2 . 2 1 Hottest 96 | . 75 75 75 . 75 68 . 96 23 Shots Fired 121 | . 2 28 4 . 17 24 . 23 23 Gun 65 | . 1 14 2 . 2 7 . 16 23 Cannon 47 | . 1 14 2 . 15 8 . 7 . Launcher 9 | . . . . . . 9 . . . Special . | . . . . . . . . . . Kinetic 82 | . 1 14 2 . 15 15 . 12 23 Thermal 11 | . . . . . . . . 11 . Explosive 9 | . . . . . . 9 . . . Electromagnetic 19 | . 1 14 2 . 2 . . . . Robot Hit Streak 9 | . 1 6 2 . 9 6 . 6 7 Robot Miss Streak 4 | . 1 3 2 . 1 2 . 4 4 Penetration Max . | . . . . . . . . . . Secondary Targets . | . . . . . . . . . . Shots Hit Robots 63 | . 1 14 2 . 12 9 . 12 13 Core Hits 49 | . 1 12 1 . 5 18 . 5 7 Critical Kills . | . . . . . . . . . . Critical Parts Destroyed . | . . . . . . . . . . Critical Strikes . | . . . . . . . . . . Melee Attacks . | . . . . . . . . . . Impact . | . . . . . . . . . . Slashing . | . . . . . . . . . . Piercing . | . . . . . . . . . . Sneak Attacks . | . . . . . . . . . . Combat Hostiles . | . . . . . . . . . . Follow-up Attacks . | . . . . . . . . . . Damage Inflicted 1534 | . 15 241 50 . 203 570 . 235 220 Guns 561 | . . 121 10 . 23 41 . 172 194 Cannons 462 | . 15 120 40 . 180 44 . 63 . Explosions 482 | . . . . . . 482 . . . Melee . | . . . . . . . . . . Ramming 29 | . . . . . . 3 . . 26 Kinetic 729 | . 15 120 40 . 180 85 . 95 194 Thermal 140 | . . . . . . . . 140 . Explosive 482 | . . . . . . 482 . . . Electromagnetic 154 | . . 121 10 . 23 . . . . Impact . | . . . . . . . . . . Slashing . | . . . . . . . . . . Piercing . | . . . . . . . . . . Highest Corruption 1 | . . . . . . . . 1 1 Average Corruption 1 | . . . . . . . . 1 1 Corruption Purged . | . . . . . . . . . . Corruption Blocked . | . . . . . . . . . . Effects 22 | . . . . . . . . 1 21 Message Errors 5 | . . . . . . . . . 5 Matter Fused 8 | . . . . . . . . 1 7 Heat Flow Errors 5 | . . . . . . . . . 5 Energy Discharges 2 | . . . . . . . . . 2 Data Loss (minor) 1 | . . . . . . . . . 1 Misfires 1 | . . . . . . . . . 1 Overload Shots . | . . . . . . . . . . Overflow Damage . | . . . . . . . . . . Projectiles . | . . . . . . . . . . Explosions . | . . . . . . . . . . Melee . | . . . . . . . . . . Knockbacks 9 | . . 4 . . 4 . . 1 . Impact . | . . . . . . . . . . Kinetic 7 | . . 2 . . 4 . . 1 . Secondary 2 | . . 2 . . . . . . . Self-Inflicted Damage 36 | . . . . . . 25 . . 11 Shots 1 | . . . . . . 1 . . . Rammed 17 | . . . . . . 1 . . 16 Targets Rammed 17 | . . . . . . 1 . . 16 Kicked . | . . . . . . . . . . Crushed . | . . . . . . . . . . Highest Temperature 203 | . 15 69 12 . 72 22 . . 203 Average Temperature 42 | . 10 20 7 . 50 8 . . 100 Received Heat Transfer 728 | . . 87 . . 180 81 . 27 353 Siege Activations . | . . . . . . . . . . Robots Corrupted . | . . . . . . . . . . Combat Hostiles . | . . . . . . . . . . Parts Fried . | . . . . . . . . . . Impact Corruptions . | . . . . . . . . . . Robots Melted . | . . . . . . . . . . Combat Hostiles . | . . . . . . . . . . Parts Melted . | . . . . . . . . . . Heat Transferred 259 | . . . . . . . . 259 . Parts Sabotaged . | . . . . . . . . . . Parts Stolen . | . . . . . . . . . . Parts Stripped . | . . . . . . . . . . Power Chain Reactions . | . . . . . . . . . . Alert | -11 -10 -9 -9 -9 -8 -8 -7 -7 -7 ------- Run | Yrd Mat Mat Min Exi Min Mat Fac DSF Gar Peak Influence 946 | . 22 348 92 . 60 187 4 100 946 Initial 57 | . . 9 57 . . 23 . 2 41 Average 164 | . 1 142 90 . 56 38 . 34 273 Maximum Alert Level 3 | . . 1 . . . . . . 3 Low Security (%) 76 | 100 100 70 100 . 100 100 100 100 57 Level 1 9 | . . 29 . . . . . . 14 Level 2 7 | . . . . . . . . . 14 Level 3 6 | . . . . . . . . . 13 Level 4 . | . . . . . . . . . . Level 5 . | . . . . . . . . . . High Security . | . . . . . . . . . . Max Security . | . . . . . . . . . . Squads Dispatched 3 | . . 1 . . . . . 2 . Investigation . | . . . . . . . . . . Extermination . | . . . . . . . . . . Reinforcement 3 | . . 1 . . . . . 2 . Assault . | . . . . . . . . . . Garrison . | . . . . . . . . . . Intercept . | . . . . . . . . . . Searches Triggered . | . . . . . . . . . . Construction Impeded . | . . . . . . . . . . Haulers Reinforced . | . . . . . . . . . . Active Scanning Responses . | . . . . . . . . . . Cargo Convoy Interrupts . | . . . . . . . . . . Stealth | -11 -10 -9 -9 -9 -8 -8 -7 -7 -7 --------- Run | Yrd Mat Mat Min Exi Min Mat Fac DSF Gar Distress Signals 1 | . 1 . . . . . . . . Communications Jammed . | . . . . . . . . . . Distress Signals . | . . . . . . . . . . Times Spotted 54 | . 4 18 2 . 2 10 . 9 9 Peak Tracking Total 11 | . 4 6 2 . 2 3 . 4 11 Tactical Retreats 6 | . . 1 . . . 2 . 3 . Traps | -11 -10 -9 -9 -9 -8 -8 -7 -7 -7 ------- Run | Yrd Mat Mat Min Exi Min Mat Fac DSF Gar Traps Triggered 4 | . . . . . . . . 2 2 Indirectly . | . . . . . . . . . . Trap Hack Attempts . | . . . . . . . . . . Triggered . | . . . . . . . . . . Disarmed . | . . . . . . . . . . Reprogrammed . | . . . . . . . . . . Reused . | . . . . . . . . . . Traps Extracted . | . . . . . . . . . . Installed . | . . . . . . . . . . Triggered . | . . . . . . . . . . Machines | -11 -10 -9 -9 -9 -8 -8 -7 -7 -7 ---------- Run | Yrd Mat Mat Min Exi Min Mat Fac DSF Gar Machines Disabled 4 | . . 1 . . . 3 . . . Max in Single Turn 1 | . . 1 . . . 1 . . . Machines Repaired . | . . . . . . . . . . Machines Dismantled . | . . . . . . . . . . Machines Sabotaged . | . . . . . . . . . . Overloaded Fab Kills . | . . . . . . . . . . Hacking | -11 -10 -9 -9 -9 -8 -8 -7 -7 -7 --------- Run | Yrd Mat Mat Min Exi Min Mat Fac DSF Gar Machines Accessed 13 | . 2 1 . 4 . 5 1 . . Terminals 6 | . 1 1 . . . 3 1 . . Fabricators . | . . . . . . . . . . Repair Stations . | . . . . . . . . . . Recycling Units 2 | . 1 . . . . 1 . . . Scanalyzers 1 | . . . . . . 1 . . . Garrison Access . | . . . . . . . . . . Total Hacks 79 | . 6 4 . 49 . 18 2 . . Successful 71 | . 5 4 . 49 . 12 1 . . Failed 8 | . 1 . . . . 6 1 . . Catastrophic 1 | . . . . . . 1 . . . Database Lockouts . | . . . . . . . . . . Manual . | . . . . . . . . . . Terminals 16 | . 3 4 . . . 7 2 . . Fabricators . | . . . . . . . . . . Repair Stations . | . . . . . . . . . . Recycling Units 5 | . 3 . . . . 2 . . . Scanalyzers 9 | . . . . . . 9 . . . Garrison Access . | . . . . . . . . . . Terminal Hacks 59 | . 2 4 . 49 . 3 1 . . Record 57 | . 2 4 . 49 . 2 . . . Open DSF 1 | . . . . . . . 1 . . Alert Level 1 | . . . . . . 1 . . . Fabricator Hacks . | . . . . . . . . . . Repair Station Hacks . | . . . . . . . . . . Recycling Unit Hacks 4 | . 3 . . . . 1 . . . Recycle Component 1 | . 1 . . . . . . . . Process 1 | . 1 . . . . . . . . Report Inventory 2 | . 1 . . . . 1 . . . Scanalyzer 8 | . . . . . . 8 . . . Insert Component 4 | . . . . . . 4 . . . Analyze 4 | . . . . . . 4 . . . Garrison Access Hacks . | . . . . . . . . . . Unauthorized Hacks . | . . . . . . . . . . Terminals . | . . . . . . . . . . Fabricators . | . . . . . . . . . . Repair Stations . | . . . . . . . . . . Recycling Units . | . . . . . . . . . . Scanalyzers . | . . . . . . . . . . Garrison Access . | . . . . . . . . . . Data Cores Recovered 2 | . . 2 . . . . . . . Used . | . . . . . . . . . . Hacking Detections 5 | . 1 1 . . . 3 . . . Full Trace Events . | . . . . . . . . . . Feedback Events . | . . . . . . . . . . Feedback Blocked . | . . . . . . . . . . Robot Schematics Acquired . | . . . . . . . . . . Robots Built . | . . . . . . . . . . Authchips . | . . . . . . . . . . Time . | . . . . . . . . . . Total Robot Build Rating . | . . . . . . . . . . Part Schematics Acquired 4 | . . . . . . 4 . . . Parts Built . | . . . . . . . . . . Authchips . | . . . . . . . . . . Time . | . . . . . . . . . . Total Part Build Rating . | . . . . . . . . . . Parts Repaired . | . . . . . . . . . . Time . | . . . . . . . . . . Parts Recycled 1 | . 1 . . . . . . . . Recycled Matter 50 | . 50 . . . . . . . . Retrieved Matter . | . . . . . . . . . . Retrieved Components . | . . . . . . . . . . Parts Scanalyzed 4 | . . . . . . 4 . . . Part Schematics Acquired 4 | . . . . . . 4 . . . Parts Damaged . | . . . . . . . . . . Bothacking | -11 -10 -9 -9 -9 -8 -8 -7 -7 -7 ------------ Run | Yrd Mat Mat Min Exi Min Mat Fac DSF Gar Used RIF Installer 1 | . . . . . . . . . 1 Robots Hacked . | . . . . . . . . . . Non-combat . | . . . . . . . . . . Combat . | . . . . . . . . . . Robot Hacks Applied . | . . . . . . . . . . Relay Couplers Released . | . . . . . . . . . . Fabnet Peak Effective % . | . . . . . . . . . . Robots Rewired . | . . . . . . . . . . Allies Hacked . | . . . . . . . . . . Hacks Repelled . | . . . . . . . . . . Allies | -11 -10 -9 -9 -9 -8 -8 -7 -7 -7 -------- Run | Yrd Mat Mat Min Exi Min Mat Fac DSF Gar Total Allies 1 | . . . 1 . . . . . . Largest Group 1 | . . . 1 1 . . . . . Highest-Rated Group 31 | . . . 31 31 . . . . . Highest-Rated Ally 31 | . . . 31 31 . . . . . Total Orders . | . . . . . . . . . . Ally Attacks . | . . . . . . . . . . Total Damage . | . . . . . . . . . . Kills . | . . . . . . . . . . Allies Corrupted . | . . . . . . . . . . Allies Melted . | . . . . . . . . . . Intel | -11 -10 -9 -9 -9 -8 -8 -7 -7 -7 ------- Run | Yrd Mat Mat Min Exi Min Mat Fac DSF Gar Robot Analysis Total . | . . . . . . . . . . Derelict Logs Recovered . | . . . . . . . . . . Drone Launches . | . . . . . . . . . . Drone Recoveries . | . . . . . . . . . . Exploration | -11 -10 -9 -9 -9 -8 -8 -7 -7 -7 ------------- Run | Yrd Mat Mat Min Exi Min Mat Fac DSF Gar Turns Passed 6887 | 51 312 464 174 701 223 1654 15 189 3104 Spaces Moved 2603 | 40 328 338 138 578 158 722 7 95 199 Core 167 | 2 . . . . . 37 . . 128 Treads 625 | . . . . . . 613 7 5 . Legs 1173 | . . 94 138 578 158 44 . 90 71 Wheels 638 | 38 328 244 . . . 28 . . . Hover . | . . . . . . . . . . Flight . | . . . . . . . . . . Fastest Speed 50 | 50 90 90 120 120 120 110 250 120 50 Average Speed 140 | 88 90 98 120 120 120 216 250 129 128 Slowest Speed 350 | 90 90 120 120 120 120 350 250 250 250 Overloaded Moves . | . . . . . . . . . . Propulsion Burnouts . | . . . . . . . . . . Robots Hopped . | . . . . . . . . . . Cave-ins Triggered . | . . . . . . . . . . Exploration Rate (%) 42 | 3 38 29 43 90 23 45 . 71 40 Regions Visited 9 Branch Regions 3 Pre-discovered Areas 2 | . . . 1 1 . . . . . Known Exits Taken 1 | . . . . . . . 1 . . Unknown Exits Taken 7 | 1 1 1 1 1 1 1 . . . Scrap Searched 3 | . . . 2 . 1 . . . . Spaces Dug . | . . . . . . . . . . Terrain Destroyed 53 | . . . . . . 53 . . . Melee . | . . . . . . . . . . Projectile . | . . . . . . . . . . AOE 53 | . . . . . . 53 . . . Terrain Rammed . | . . . . . . . . . . Walls Destroyed . | . . . . . . . . . . Machines Disabled . | . . . . . . . . . . Actions | -11 -10 -9 -9 -9 -8 -8 -7 -7 -7 --------- Run | Yrd Mat Mat Min Exi Min Mat Fac DSF Gar Total 5692 | 55 345 441 143 586 174 791 6 139 3012 Wait 2890 | . . 79 . . 2 30 . 7 2772 Move 2594 | 39 327 337 137 577 157 721 6 94 199 Hop . | . . . . . . . . . . Pick Up 44 | 12 7 4 1 3 2 10 . 5 . Fast Attach 1 | . . . 1 . . . . . . Attach 32 | 4 5 2 . . 1 10 . 8 2 Detach 2 | . 2 . . . . . . . . Swap 11 | . . 3 . 1 1 4 . 2 . Drop 17 | . 3 2 2 3 1 2 . 4 . Fire 77 | . 1 14 2 . 10 13 . 15 22 Melee . | . . . . . . . . . . Ram 17 | . . . . . . 1 . . 16 Kick . | . . . . . . . . . . Crush . | . . . . . . . . . . Escape Stasis 1 | . . . . . . . . . 1 Rewire 6 | . . . . 2 . . . 4 . Trap . | . . . . . . . . . . Miscellaneous . | . . . . . . . . . . Route ------- -11/Scrapyard -10/Materials -9/Materials -9/Mines (discovered 3 exits: *Mat x2 / *Exi) -9/Exiles (discovered 2 exits: [*Min x2]) -8/Mines -8/Materials -7/Factory -7/DSF -7/Garrison History --------- Turn | Location | Event 22 | -11/Scrapyard | Discovered new exit (range 15) 52 | -11/Scrapyard | Entered Materials 251 | -10/Materials | Discovered new exit (range 15) 308 | -10/Materials | Build established: Mutant 364 | -10/Materials | Entered another Materials area 364 | -9/Materials | Evolved 2 slots: Utility x2 808 | -9/Materials | Discovered new exit (range 13) 828 | -9/Materials | Entered Mines 839 | -9/Mines | Escorted by a lone wolf Derelict 859 | -9/Mines | Learned location of Storage (-7) 908 | -9/Mines | Discovered new exit (range 14) 938 | -9/Mines | Discovered new exit (range 7) 996 | -9/Mines | Deemed a non-threat by the Exiles lab entrance 996 | -9/Mines | Discovered new exit (range 6) 1002 | -9/Mines | Entered Exiles 1002 | -9/Exiles | Accompanied by 1 ally 1043 | -9/Exiles | Met 8R-AWN 1065 | -9/Exiles | Met EX-HEX 1115 | -9/Exiles | Met EX-DEC 1161 | -9/Exiles | Visited The Gauntlet 1313 | -9/Exiles | Learned location of Zion (-6) 1376 | -9/Exiles | Discovered new exit (range 14) 1462 | -9/Exiles | Met EX-BIN 1512 | -9/Exiles | Aligned with FarCom system 1514 | -9/Exiles | Given EX-Vault access code 1687 | -9/Exiles | Discovered new exit (range 15) 1703 | -9/Exiles | Entered Mines 1761 | -8/Mines | Discovered new exit (range 13) 1926 | -8/Mines | Entered Materials 1926 | -8/Materials | Evolved 2 slots: Propulsion x1, Utility x1 2128 | -8/Materials | Lost 3 parts (1p1u1w) 2284 | -8/Materials | Build established: Skirmisher 2530 | -8/Materials | Discovered new exit (range 13) 2884 | -8/Materials | Build established: Assassin 3328 | -8/Materials | Build established: Skirmisher 3580 | -8/Materials | Entered Factory 3580 | -7/Factory | Evolved 2 slots: Power x1, Utility x1 3593 | -7/Factory | Identified exit to DSF 3595 | -7/Factory | Entered DSF 3648 | -7/DSF | Additional patrols routed to DSF 3754 | -7/DSF | Discovered new exit (range 14) 3757 | -7/DSF | Lost 6 parts (2p2u2w) 3784 | -7/DSF | Entered Garrison 3938 | -7/Garrison | Triggered checkpoint 4038 | -7/Garrison | Lost 3 parts (3n) 4111 | -7/Garrison | Build established: Hacker-Mutant 6840 | -7/Garrison | Core integrity fell below 50% 6852 | -7/Garrison | Core integrity fell below 20% 6854 | -7/Garrison | Triggered checkpoint 6868 | -7/Garrison | Installed Relay Interface Framework 6881 | -7/Garrison | Lost 4 parts (3u1w) 6888 | -7/Garrison | Destroyed by Y-54 Guardian with Gatling Laser Last Messages --------------- Med. Storage Unit destroyed. Slammed into G-47 Trooper. Destabilizing: Core damaged (-21). Slammed into G-47 Trooper. Trap Scanner destroyed. Slug penetrates Wall. Slug penetrates Garrison Door. Beams of light sweep through the air. An alarm sounds. Slug penetrates Wall. Penetrated by Slug. Initiating installation procedure... Relay Interface Framework installed. With RIF installed, you can review your current list of abilities via the new button at the top-right of the HUD, or Spacebar+i. Triggered Alarm Trap. An alarm sounds. Slug penetrates G-47 Trooper. G-47 Trooper destroyed. Map ----- +----------------------------------------------------+ | ?????????????????????????# # "? | | ?????????????????????????####### "? | | ???????????????????????????????# "? | | ???????????????????????????????### ## ## #? | | ?????????????????????????????????# ## ## #? | | ?????????????????????????????????# #? | | ?????????????????????????????????# #? | | ?????????????????????????????????# * #? | | ?????????????????????????????????#[%=##""""## ##? | | ?????????????????????????????????# = #??????? #?? | | ?????????????????????????????????# #???????? #?? | | ?????????????????????????????????# #?????????#?? | | ?????????????????????????????????#h #???????????? | | ?????????????????????????????????# #???????????? | | ?????????????????????????????????# #???????????? | | ???????????#######################Y #???????????? | | ?????????? g #???????????? | | ?????????? hh #???????????? | | ?????????? h #???????????? | | ??????????????########### ######### #???????????? | | ????????????????????????# ###?????# #???????????? | | ????????????????????????# #?????# #???????????? | | ????????????????????????# #?????# #???????????? | | ????????????????????????# Y #?????# #???????????? | | ????????????????????????# ###????## ##??????????? | | ????????????????????????#@ #??????# #??????????? | | ????????????????????????# #??????#" "#??????????? | | ????????????????????????# ###????#" "#??????????? | | ????????????????????????# #"#????#" "#??????????? | | ????????????????????????# "#????#"""#??????????? | | ????????????????????????# "#????#####??????????? | | ????????????????????????# "#???????????????????? | | ????????????????????????# #"#???????????????????? | | ????????????????????????# ###???????????????????? | | ????????????????????????####?????????????????????? | | ?????????????????????????????????????????????????? | | ?????????????????????????????????????????????????? | | ?????????????????????????????????????????????????? | | ?????????????????????????????????????????????????? | | ?????????????????????????????????????????????????? | | ?????????????????????????????????????????????????? | | ?????????????????????????????????????????????????? | | ?????????????????????????????????????????????????? | | ?????????????????????????????????????????????????? | | ?????????????????????????????????????????????????? | | ?????????????????????????????????????????????????? | | ?????????????????????????????????????????????????? | | ?????????????????????????????????????????????????? | | ?????????????????????????????????????????????????? | | ?????????????????????????????????????????????????? | +----------------------------------------------------+ Best States ------------- Heat Dissipation 34 Energy Generation 19 Energy Capacity 185 Matter Stores 300 Matter Capacity 350 Sight Range 16 Terrain Scan Range 14 Terrain Scan Density 160 Core Shielding 20 Evasion (%) 55 Targeting Accuracy 5 Recoil Reduction 1 Offensive Hacking 20 Item Schematics ----------------- Carbon-fiber Leg | -8/Materials | Scanalyzed Lgt. Ion Engine | -8/Materials | Scanalyzed Trap Scanner | -8/Materials | Scanalyzed Terrain Scan Processor | -8/Materials | Scanalyzed Robot Schematics ------------------ None Fabricated ------------ Nothing Alien Tech Used ----------------- None Achievements -------------- None Challenges ------------ None Game ------ Seed ThrowingSniperFalx Manual? 0 Play Time 01:23:36 Cumulative 57.1 hours Start 2024.03.07 @ 16:43:57 End 2024.03.08 @ 12:49:12 Sessions 1 Manual Loads 0 Difficulty Rogue Special Mode None Game No. 45 Rogue 45 Adventurer 0 Explorer 0 Win Type - Total 0 Types 0/0/0/0/0/0/0/0/0 Lore% 21 Gallery% 20 Achievement% 19 Wizard Run 0 Options --------- Layout 1 ASCII 0 Keyboard 0 Movement Numpad Keybinds 0 Fullscreen 1 Font 24/Smallcaps Map View 50x35 Zoom Use 0% Tactical HUD 0 Map Filters NONE Filters NONE Steam 1 RUN: 0537657d-2319-4055-9307-bbf3bdb4c719